[Event "EYCC Girls U12 2018"]
[Site "Riga"]
[Date "2018.08.22"]
[Round "3"]
[White "Alimova, Dana"]
[Black "Gaal, Zsoka"]
[Result "0-1"]
[ECO "B27"]
[WhiteElo "1716"]
[BlackElo "2008"]
[Annotator "NA"]
[PlyCount "102"]
[EventDate "2018.08.20"]
[EventType "swiss"]
[EventCountry "LAT"]
[SourceTitle "playchess.com"]
[Source "ChessBase"]
[SourceQuality "1"]
[TimeControl "40/5400+30:1800+30"]

1. e4 {[%emt 0:00:00]} c5 {[%emt 0:00:00]} 2. Nf3 {[%emt 0:00:00]} g6 {[%emt 0:00:09]} 3. d4 {[%emt 0:00:00]} cxd4 {[%emt 0:00:13]} 4. Qxd4 {[%emt 0:00:03]} Nf6 $11 {[%emt 0:00:19] LiveBook: 783 Games} 5. e5 {[%emt 0:00:50]} Nc6 {[%emt 0:00:33]} 6. Qa4 {[%emt 0:00:15]} Nd5 {[%emt 0:00:52]} 7. Bb5 {[%emt 0:06:16]} Bg7 {[%emt 0:06:59]} 8. O-O {[%emt 0:02:54]} O-O {[%emt 0:01:12]} 9. Qh4 {[%emt 0:23:39]} d6 {[%emt 0:22:17]} 10. e6 {[%emt 0:30:53]} Bxe6 {[%emt 0:11:08]} 11. Ng5 {[%emt 0:04:08]} Nf6 {[%emt 0:01:32]} 12. Bxc6 {[%emt 0:12:45]} bxc6 {[%emt 0:00:42]} 13. Bd2 {[%emt 0:02:34]} Bf5 {[%emt 0:07:08]} 14. Na3 {[%emt 0:06:33]} e5 {[%emt 0:07:36]} 15. Bc3 {[%emt 0:03:41]} h6 {[%emt 0:01:03]} 16. Nf3 {[%emt 0:01:06]} Ne4 {[%emt 0:01:09]} 17. Qxd8 {[%emt 0:00:51]} Rfxd8 {[%emt 0:00:43]} 18. Ba5 {[%emt 0:00:40]} Rd7 {[%emt 0:00:47]} 19. Rad1 {[%emt 0:01:19]} f6 {[%emt 0:04:29]} 20. Nh4 {[%emt 0:00:51]} Kf7 {[%emt 0:03:24]} 21. Nxf5 {[%emt 0:00:23]} gxf5 {[%emt 0:00:04]} 22. f3 {[%emt 0:00:28]} Nc5 {[%emt 0:00:33]} 23. Bb4 {[%emt 0:00:44]} Nb7 {[%emt 0:00:46]} 24. Nc4 {[%emt 0:00:32]} Ke6 {[%emt 0:03:11]} 25. a4 {[%emt 0:00:32]} d5 {[%emt 0:02:00]} 26. Na5 {[%emt 0:00:25]} Nxa5 {[%emt 0:01:28]} 27. Bxa5 {[%emt 0:00:03]} Bf8 {[%emt 0:00:40]} 28. b3 {[%emt 0:00:51]} Bc5+ {[%emt 0:00:57]} 29. Kh1 {[%emt 0:00:08]} f4 {[%emt 0:00:53]} 30. Rd3 {[%emt 0:00:53]} Be3 {[%emt 0:03:05]} 31. Bc3 {[%emt 0:00:42]} Rg8 {[%emt 0:01:48]} 32. Ba5 {[%emt 0:00:28]} Rdg7 {[%emt 0:00:50]} 33. Bd2 {[%emt 0:00:30]} e4 {[%emt 0:10:05]} 34. fxe4 {[%emt 0:00:09]} dxe4 {[%emt 0:00:59]} 35. Rxe3 {[%emt 0:00:21]} fxe3 {[%emt 0:00:39]} 36. Bxe3 {[%emt 0:00:07]} a6 {[%emt 0:05:05]} 37. g3 {[%emt 0:00:16]} h5 {[%emt 0:00:36]} 38. Bd4 {[%emt 0:00:22]} Rf7 {[%emt 0:00:21]} 39. Kg2 {[%emt 0:01:44]} Rd8 {[%emt 0:01:24]} 40. c3 {[%emt 0:00:00]} Rd5 {[%emt 0:00:00]} 41. b4 {[%emt 0:01:45]} f5 {[%emt 0:03:50]} 42. a5 {[%emt 0:01:27]} Rh7 {[%emt 0:09:13]} 43. Rf4 {[%emt 0:03:23]} Rhd7 {[%emt 0:03:32]} 44. Bc5 {[%emt 0:06:27]} Rd2+ {[%emt 0:02:24]} 45. Rf2 {[%emt 0:01:38]} Rxf2+ {[%emt 0:00:15]} 46. Kxf2 {[%emt 0:00:34]} Rd2+ {[%emt 0:00:49]} 47. Kg1 {[%emt 0:01:24]} Rc2 {[%emt 0:00:09]} 48. Bd4 {[%emt 0:00:07]} Kd5 {[%emt 0:00:11]} 49. h4 {[%emt 0:00:13]} Kc4 {[%emt 0:00:07]} 50. Kf1 {[%emt 0:00:16]} Rxc3 {[%emt 0:00:31]} 51. Bxc3 {[%emt 0:00:07]} Kxc3 0-1

[Event "EYCC Girls U12 2018"]
[Site "Riga"]
[Date "2018.08.22"]
[Round "3"]
[White "Shubenkova, Veronika"]
[Black "Kozachenko, Maria"]
[Result "1-0"]
[ECO "A45"]
[WhiteElo "1700"]
[BlackElo "1792"]
[Annotator "NA"]
[PlyCount "195"]
[EventDate "2018.08.20"]
[EventType "swiss"]
[EventCountry "LAT"]
[SourceTitle "playchess.com"]
[Source "ChessBase"]
[SourceQuality "1"]
[TimeControl "40/5400+30:1800+30"]

1. d4 {[%emt 0:00:49]} Nf6 {[%emt 0:00:00]} 2. e3 {[%emt 0:00:24]} e6 {[%emt 0:00:09]} 3. Bd3 {[%emt 0:01:15]} b6 {[%emt 0:03:11]} 4. f4 {[%emt 0:01:47]} Bb7 {[%emt 0:01:48]} 5. Nf3 {[%emt 0:01:32]} d5 {[%emt 0:02:05]} 6. O-O {[%emt 0:02:38]} Nbd7 {[%emt 0:04:11]} 7. Qe2 {[%emt 0:02:22]} c5 {[%emt 0:04:06]} 8. c3 {[%emt 0:01:23]} Qc7 {[%emt 0:03:32]} 9. Ne5 {[%emt 0:01:24]} g6 {[%emt 0:03:36]} 10. Nd2 {[%emt 0:01:18]} a6 {[%emt 0:10:55]} 11. a3 {[%emt 0:02:31]} Ne4 {[%emt 0:04:31]} 12. Ndf3 {[%emt 0:02:53]} f6 {[%emt 0:02:50]} 13. Nxd7 {[%emt 0:01:00]} Qxd7 {[%emt 0:00:25]} 14. Bd2 {[%emt 0:03:11]} c4 {[%emt 0:02:07]} 15. Bc2 {[%emt 0:06:38]} Rc8 {[%emt 0:04:34]} 16. Be1 {[%emt 0:00:26]} b5 {[%emt 0:02:43]} 17. Nd2 {[%emt 0:01:19]} Bd6 {[%emt 0:02:28]} 18. Qf3 {[%emt 0:04:18]} Qc6 {[%emt 0:02:26]} 19. Nxe4 {[%emt 0:03:23]} dxe4 {[%emt 0:00:10]} 20. Qg4 {[%emt 0:00:57]} Be7 {[%emt 0:01:32]} 21. Qe2 {[%emt 0:03:19]} Qb6 {[%emt 0:01:53]} 22. Bg3 {[%emt 0:04:52]} Bd5 {[%emt 0:03:58]} 23. Bh4 {[%emt 0:04:13]} Kf7 {[%emt 0:02:23]} 24. g4 {[%emt 0:03:39]} f5 {[%emt 0:03:47]} 25. Bxe7 {[%emt 0:01:10]} Kxe7 {[%emt 0:00:06]} 26. h3 {[%emt 0:01:12]} a5 {[%emt 0:02:07]} 27. Kg2 {[%emt 0:03:03]} Kd6 {[%emt 0:03:04]} 28. h4 {[%emt 0:01:46]} Qd8 {[%emt 0:02:13]} 29. g5 {[%emt 0:03:15]} h6 {[%emt 0:01:57]} 30. Rh1 {[%emt 0:00:30]} Qb6 {[%emt 0:00:55]} 31. Qf2 {[%emt 0:02:09]} h5 {[%emt 0:03:21]} 32. Qd2 {[%emt 0:03:09]} Rc7 {[%emt 0:02:16]} 33. Ra2 {[%emt 0:02:07]} Rb8 {[%emt 0:01:48]} 34. Rha1 {[%emt 0:01:03]} Qa7 {[%emt 0:00:50]} 35. Qc1 {[%emt 0:01:51]} Rb6 {[%emt 0:00:41]} 36. Kf2 {[%emt 0:01:30]} Qb8 {[%emt 0:01:09]} 37. Ke2 {[%emt 0:01:20]} Rcb7 {[%emt 0:00:35]} 38. Kd2 {[%emt 0:01:05]} Ke7 {[%emt 0:02:21]} 39. Ke1 {[%emt 0:01:03]} Qd6 {[%emt 0:00:29]} 40. Kd2 {[%emt 0:00:00]} Rb8 {[%emt 0:00:00]} 41. Ke1 {[%emt 0:01:54]} Kd7 {[%emt 0:09:27]} 42. Kd2 {[%emt 0:00:37]} Kc7 {[%emt 0:01:28]} 43. Ke1 {[%emt 0:00:38]} Rf8 {[%emt 0:00:59]} 44. Qd2 {[%emt 0:00:52]} Rd8 {[%emt 0:02:18]} 45. Ke2 {[%emt 0:00:45]} Kd7 {[%emt 0:00:51]} 46. Ke1 {[%emt 0:00:52]} Ke7 {[%emt 0:00:47]} 47. Ke2 {[%emt 0:00:13]} Kf8 {[%emt 0:00:28]} 48. Ke1 {[%emt 0:00:08]} Kg8 {[%emt 0:00:10]} 49. Ke2 {[%emt 0:00:08]} Rb7 {[%emt 0:00:21]} 50. Ke1 {[%emt 0:02:18]} Qb6 {[%emt 0:01:15]} 51. Ke2 {[%emt 0:01:37]} Re7 {[%emt 0:01:56]} 52. Ke1 {[%emt 0:01:56]} Qb8 {[%emt 0:01:39]} 53. Ke2 {[%emt 0:00:49]} Bc6 {[%emt 0:03:10]} 54. Qe1 {[%emt 0:00:53]} Rd5 {[%emt 0:01:29]} 55. Qf1 {[%emt 0:03:06]} Rd6 {[%emt 0:01:46]} 56. Qe1 {[%emt 0:00:38]} Bd5 {[%emt 0:00:42]} 57. Qc1 {[%emt 0:01:06]} Ra7 {[%emt 0:00:23]} 58. Ke1 {[%emt 0:00:24]} Rda6 {[%emt 0:00:19]} 59. Kd2 {[%emt 0:00:23]} Qb6 {[%emt 0:00:19]} 60. Ke1 {[%emt 0:00:14]} Kf7 {[%emt 0:00:57]} 61. Kd2 {[%emt 0:00:46]} Ke7 {[%emt 0:00:21]} 62. Ke1 {[%emt 0:00:08]} Kd6 {[%emt 0:00:12]} 63. Kd2 {[%emt 0:00:21]} Bb7 {[%emt 0:00:31]} 64. Ke1 {[%emt 0:00:07]} Ra8 {[%emt 0:03:40]} 65. Kd2 {[%emt 0:00:06]} Bc8 {[%emt 0:00:25]} 66. Ke1 {[%emt 0:00:09]} Rb8 {[%emt 0:00:39]} 67. Kd2 {[%emt 0:00:20]} Qc6 {[%emt 0:00:36]} 68. Ke1 {[%emt 0:00:32]} Rbb6 {[%emt 0:00:29]} 69. Kd2 {[%emt 0:00:09]} b4 {[%emt 0:02:16]} 70. axb4 {[%emt 0:00:05]} axb4 {[%emt 0:00:07]} 71. Rxa6 {[%emt 0:00:05]} Bxa6 {[%emt 0:00:15]} 72. Ke1 {[%emt 0:01:07]} Qb7 {[%emt 0:03:03]} 73. Kd2 {[%emt 0:00:30]} Kc7 {[%emt 0:01:25]} 74. Ke1 {[%emt 0:00:34]} Qc6 {[%emt 0:01:38]} 75. Qd2 {[%emt 0:00:53]} bxc3 {[%emt 0:00:51]} 76. bxc3 {[%emt 0:00:21]} Kb7 {[%emt 0:00:38]} 77. Qc1 {[%emt 0:00:28]} Qb5 {[%emt 0:01:30]} 78. Rb1 {[%emt 0:00:18]} Qa5 {[%emt 0:00:22]} 79. Rxb6+ {[%emt 0:00:08]} Kxb6 {[%emt 0:00:07]} 80. Qb2+ {[%emt 0:00:09]} Bb5 {[%emt 0:00:22]} 81. Kd2 {[%emt 0:00:15]} Kc6 {[%emt 0:02:11]} 82. Qb4 {[%emt 0:03:00]} Qxb4 {[%emt 0:01:34]} 83. cxb4 {[%emt 0:00:04]} Kd5 {[%emt 0:00:15]} 84. Kc3 {[%emt 0:00:09]} Kc6 {[%emt 0:00:19]} 85. Bd1 {[%emt 0:00:14]} Kd5 {[%emt 0:00:46]} 86. Be2 {[%emt 0:00:05]} Bd7 {[%emt 0:01:54]} 87. Bxc4+ {[%emt 0:00:08]} Kc6 {[%emt 0:00:08]} 88. b5+ {[%emt 0:00:13]} Kb6 {[%emt 0:02:03]} 89. Kb4 {[%emt 0:00:08]} Bc8 {[%emt 0:00:40]} 90. d5 {[%emt 0:00:37]} e5 {[%emt 0:00:39]} 91. fxe5 {[%emt 0:00:05]} f4 {[%emt 0:00:05]} 92. e6 {[%emt 0:00:14]} fxe3 {[%emt 0:01:05]} 93. Be2 {[%emt 0:00:23]} Kb7 {[%emt 0:00:33]} 94. Kc5 {[%emt 0:00:04]} Kc7 {[%emt 0:00:09]} 95. d6+ {[%emt 0:00:14]} Kd8 {[%emt 0:00:16]} 96. d7 {[%emt 0:00:13]} Bxd7 {[%emt 0:00:35]} 97. exd7 {[%emt 0:00:04]} Kxd7 {[%emt 0:00:04]} 98. b6 {[%emt 0:00:09]} 1-0

[Event "EYCC Girls U12 2018"]
[Site "Riga"]
[Date "2018.08.23"]
[Round "4"]
[White "Gaal, Zsoka"]
[Black "Anacoglu, Cisel"]
[Result "1-0"]
[ECO "A05"]
[WhiteElo "2008"]
[BlackElo "1734"]
[Annotator "NA RC"]
[PlyCount "81"]
[EventDate "2018.08.20"]
[EventType "swiss"]
[EventCountry "LAT"]
[SourceTitle "playchess.com"]
[Source "ChessBase"]
[SourceQuality "1"]
[TimeControl "40/5400+30:1800+30"]

1. Nf3 {[%emt 0:00:00]} Nf6 {[%emt 0:00:00]} 2. g3 {[%emt 0:00:06]} g6 {[%emt 0:00:00]} 3. Bg2 {[%emt 0:00:07]} Bg7 {[%emt 0:00:00]} 4. c4 {[%emt 0:00:16]} d6 {[%emt 0:00:00]} 5. Nc3 {[%emt 0:00:25]} O-O {[%emt 0:00:12]} 6. O-O {[%emt 0:00:11] LiveBook: 3800 Games} Nc6 {[%emt 0:02:07]} 7. Rb1 {[%emt 0:00:53]} e5 {[%emt 0:00:45]} 8. d3 {[%emt 0:00:08]} h6 {[%emt 0:00:08]} 9. b4 {[%emt 0:01:59]} Be6 {[%emt 0:00:19]} 10. b5 {[%emt 0:02:09]} Ne7 {[%emt 0:00:06]} 11. Nd2 {[%emt 0:07:19]} Qc8 {[%emt 0:00:08]} 12. Ba3 {[%emt 0:01:45]} Bh3 {[%emt 0:03:25]} 13. Rc1 {[%emt 0:02:16]} Bxg2 {[%emt 0:00:13]} 14. Kxg2 {[%emt 0:00:04]} Qe6 {[%emt 0:14:31]} 15. Qb3 $11 {[%emt 0:05:01]} Nh5 {[%emt 0:33:36]} 16. c5 {[%emt 0:16:37]} d5 {[%emt 0:04:42]} 17. c6 {[%emt 0:08:16]} bxc6 {[%emt 0:00:13]} 18. Bxe7 {[%emt 0:00:46]} Qxe7 {[%emt 0:00:01]} 19. bxc6 {[%emt 0:01:02]} d4 {[%emt 0:24:09]} 20. Nd5 {[%emt 0:01:57]} Qd8 {[%emt 0:00:54]} 21. Rb1 {[%emt 0:08:09]} Nf6 {[%emt 0:01:24]} 22. Nxf6+ {[%emt 0:00:47]} Bxf6 {[%emt 0:00:12]} 23. Ne4 Be7 24. Qc4 {[%emt 0:02:54]} Rb8 {[%emt 0:01:44]} 25. Rb7 {[%emt 0:03:54]} Rxb7 {[%emt 0:04:12]} 26. cxb7 {[%emt 0:00:02]} c5 {[%emt 0:00:01]} 27. Rb1 {[%emt 0:04:14]} Qc7 {[%emt 0:00:15]} 28. Qd5 {[%emt 0:01:58]} Rb8 {[%emt 0:00:48]} 29. Nd2 {[%emt 0:02:14]} Kf8 {[%emt 0:01:50]} 30. Nc4 {[%emt 0:00:41]} f6 {[%emt 0:00:20]} 31. a4 {[%emt 0:01:02]} Qd8 {[%emt 0:02:25]} 32. Qe4 {[%emt 0:05:25]} Kg7 {[%emt 0:00:54]} 33. a5 {[%emt 0:03:16]} Qc7 {[%emt 0:03:54]} 34. a6 {[%emt 0:01:25]} Bd8 {[%emt 0:01:38]} 35. Qd5 {[%emt 0:00:36]} Qf7 {[%emt 0:01:48]} 36. Qxf7+ {[%emt 0:01:06]} Kxf7 {[%emt 0:00:02]} 37. Nd6+ {[%emt 0:00:26]} Ke6 {[%emt 0:00:04]} 38. Nc8 {[%emt 0:00:37]} e4 {[%emt 0:00:17]} 39. Nxa7 {[%emt 0:00:23]} Kd7 {[%emt 0:00:24]} 40. Nc8 {[%emt 0:00:00]} exd3 {[%emt 0:00:00]} 41. exd3 1-0

[Event "EYCC Girls U12 2018"]
[Site "Riga"]
[Date "2018.08.23"]
[Round "4"]
[White "Karmanova, Olga Dm"]
[Black "Bashylina, Luisa"]
[Result "1-0"]
[ECO "A20"]
[WhiteElo "1730"]
[BlackElo "1817"]
[Annotator "NA RC"]
[PlyCount "59"]
[EventDate "2018.08.20"]
[EventType "swiss"]
[EventCountry "LAT"]
[SourceTitle "playchess.com"]
[Source "ChessBase"]
[SourceQuality "1"]
[TimeControl "40/5400+30:1800+30"]

1. c4 {[%emt 0:00:00]} e5 {[%emt 0:00:00]} 2. g3 {[%emt 0:00:00]} Nc6 {[%emt 0:00:07]} 3. Nc3 {[%emt 0:00:40]} f5 {[%emt 0:00:58]} 4. Bg2 {[%emt 0:00:16]} Nf6 {[%emt 0:00:17]} 5. e3 {[%emt 0:00:11]} d6 {[%emt 0:02:08]} 6. Nge2 {[%emt 0:01:03]} g6 {[%emt 0:01:33]} 7. O-O {[%emt 0:02:36]} Bg7 {[%emt 0:00:26]} 8. Rb1 {[%emt 0:02:56]} O-O {[%emt 0:03:49]} 9. d3 {[%emt 0:03:43]} g5 {[%emt 0:06:51]} 10. f4 {[%emt 0:00:21]} h6 {[%emt 0:03:37]} 11. b4 {[%emt 0:03:45]} exf4 {[%emt 0:05:59]} 12. exf4 {[%emt 0:00:27]} Nh5 {[%emt 0:02:46]} 13. Nd5 {[%emt 0:04:02]} a6 {[%emt 0:05:11]} 14. Kh1 {[%emt 0:05:37]} gxf4 {[%emt 0:06:27]} 15. Nexf4 {[%emt 0:04:01]} Nxf4 {[%emt 0:01:45]} 16. Nxf4 {[%emt 0:01:43]} Kh7 {[%emt 0:07:20]} 17. Qh5 {[%emt 0:02:45]} Ne7 {[%emt 0:03:11]} 18. Bd2 {[%emt 0:02:43]} c6 {[%emt 0:05:06]} 19. Rbe1 {[%emt 0:02:07]} Bd7 {[%emt 0:02:11]} 20. Ne6 {[%emt 0:02:13]} Bxe6 {[%emt 0:05:33]} 21. Rxe6 {[%emt 0:00:06]} Ng8 {[%emt 0:06:57]} 22. Bh3 {[%emt 0:04:07]} Kh8 {[%emt 0:09:46]} 23. Bxf5 {[%emt 0:01:56]} Rxf5 {[%emt 0:02:18]} 24. Rxf5 {[%emt 0:01:43]} Qd7 {[%emt 0:01:24]} 25. Qf7 {[%emt 0:01:12]} Qc8 {[%emt 0:01:19]} 26. Rh5 {[%emt 0:00:49]} c5 {[%emt 0:00:40]} 27. Bc3 {[%emt 0:02:17]} Qc6+ {[%emt 0:03:12]} 28. Kg1 {[%emt 0:00:20]} Nf6 {[%emt 0:01:55]} 29. Bxf6 {[%emt 0:00:51]} Bxf6 {[%emt 0:01:19]} 30. Rxh6# {[%emt 0:00:11] Qe8} 1-0

[Event "EYCC Girls U12 2018"]
[Site "Riga"]
[Date "2018.08.23"]
[Round "4"]
[White "Shubenkova, Veronika"]
[Black "Mikheeva, Galina"]
[Result "1/2-1/2"]
[ECO "A88"]
[WhiteElo "1700"]
[BlackElo "1776"]
[Annotator "NA RC"]
[PlyCount "57"]
[EventDate "2018.08.20"]
[EventType "swiss"]
[EventCountry "LAT"]
[SourceTitle "playchess.com"]
[Source "ChessBase"]
[SourceQuality "1"]
[TimeControl "40/5400+30:1800+30"]

1. d4 {[%emt 0:01:04]} f5 {[%emt 0:00:00]} 2. Nf3 {[%emt 0:01:11]} Nf6 {[%emt 0:00:37]} 3. c4 {[%emt 0:05:19]} g6 {[%emt 0:00:06]} 4. g3 {[%emt 0:00:45]} Bg7 {[%emt 0:00:06]} 5. Bg2 {[%emt 0:01:26]} O-O {[%emt 0:00:10]} 6. O-O {[%emt 0:01:01]} d6 {[%emt 0:00:06]} 7. Nc3 {[%emt 0:02:41]} c6 {[%emt 0:01:20]} 8. Qb3 {[%emt 0:04:34]} h6 {[%emt 0:10:58]} 9. a3 {[%emt 0:16:40]} Kh7 {[%emt 0:05:24]} 10. Qc2 {[%emt 0:04:24]} Qc7 {[%emt 0:02:45]} 11. b4 {[%emt 0:13:53]} e5 {[%emt 0:04:44]} 12. e3 {[%emt 0:01:08]} e4 {[%emt 0:01:14]} 13. Nd2 {[%emt 0:00:42]} d5 {[%emt 0:02:22]} 14. cxd5 {[%emt 0:01:20]} cxd5 {[%emt 0:00:07]} 15. Bb2 {[%emt 0:00:22]} Be6 {[%emt 0:06:50]} 16. Rac1 {[%emt 0:00:36]} Qe7 {[%emt 0:01:54]} 17. Qb3 {[%emt 0:02:19]} g5 {[%emt 0:07:35]} 18. b5 {[%emt 0:01:34]} Nbd7 {[%emt 0:04:00]} 19. a4 {[%emt 0:01:30]} Rfc8 {[%emt 0:02:46]} 20. Ba3 {[%emt 0:00:38]} Qf7 {[%emt 0:00:22]} 21. Na2 {[%emt 0:01:04]} Nb6 {[%emt 0:02:41]} 22. Rfe1 {[%emt 0:06:03]} Qd7 {[%emt 0:03:21]} 23. Bf1 {[%emt 0:00:48]} Qf7 {[%emt 0:02:02]} 24. Rxc8 {[%emt 0:00:42]} Rxc8 {[%emt 0:02:02]} 25. Rc1 {[%emt 0:00:05]} Rxc1 {[%emt 0:03:12]} 26. Bxc1 {[%emt 0:00:10]} Qc7 {[%emt 0:15:51]} 27. Qc3 {[%emt 0:02:13]} Qxc3 {[%emt 0:04:01]} 28. Nxc3 {[%emt 0:00:32]} Bf8 {[%emt 0:00:52]} 29. Ndb1 {[%emt 0:01:32]} 1/2-1/2

[Event "EYCC Girls U12 2018"]
[Site "Riga"]
[Date "2018.08.23"]
[Round "4"]
[White "Blokhin, Sofia"]
[Black "Roebers, Eline"]
[Result "1-0"]
[ECO "B11"]
[WhiteElo "1500"]
[BlackElo "1857"]
[Annotator "NA RC"]
[PlyCount "27"]
[EventDate "2018.08.20"]
[EventType "swiss"]
[EventCountry "LAT"]
[SourceTitle "playchess.com"]
[Source "ChessBase"]
[SourceQuality "1"]
[TimeControl "40/5400+30:1800+30"]

1. e4 {[%emt 0:00:00]} c6 {[%emt 0:00:00]} 2. Nf3 {[%emt 0:00:00]} d5 {[%emt 0:00:00]} 3. Nc3 {[%emt 0:00:00]} Bg4 {[%emt 0:00:38]} 4. h3 {[%emt 0:01:09]} Bxf3 {[%emt 0:00:32]} 5. Qxf3 {[%emt 0:00:09]} d4 {[%emt 0:01:00]} 6. Ne2 {[%emt 0:00:29]} c5 {[%emt 0:02:15]} 7. c3 {[%emt 0:05:29]} g6 {[%emt 0:03:11]} 8. cxd4 {[%emt 0:03:17]} cxd4 {[%emt 0:00:16]} 9. Nf4 {[%emt 0:01:47]} Nc6 {[%emt 0:03:49]} 10. Bb5 {[%emt 0:01:33]} e5 {[%emt 0:02:51]} 11. Nd5 {[%emt 0:03:28]} Bg7 {[%emt 0:08:13] [#]} 12. d3 $16 {[%emt 0:05:26]} Nge7 {[%emt 0:07:58]} 13. Bg5 {[%emt 0:02:15]} Qa5+ {[%emt 0:00:52]} 14. b4 1-0

[Event "EYCC Girls U12 2018"]
[Site "Riga"]
[Date "2018.08.23"]
[Round "4"]
[White "Tsirekidze, Barbare"]
[Black "Alekseenko, Mariya"]
[Result "1/2-1/2"]
[ECO "A43"]
[WhiteElo "1413"]
[BlackElo "1750"]
[Annotator "NA RC"]
[PlyCount "84"]
[EventDate "2018.08.20"]
[EventType "swiss"]
[EventCountry "LAT"]
[SourceTitle "playchess.com"]
[Source "ChessBase"]
[SourceQuality "1"]
[TimeControl "40/5400+30:1800+30"]

1. d4 {[%emt 0:00:00]} c5 {[%emt 0:00:00]} 2. c3 {[%emt 0:00:00]} b6 {[%emt 0:00:00]} 3. Bf4 {[%emt 0:01:24]} Nf6 {[%emt 0:00:16]} 4. e3 {[%emt 0:00:45]} Bb7 {[%emt 0:00:15]} 5. h3 {[%emt 0:01:29]} g6 {[%emt 0:00:12]} 6. Nf3 {[%emt 0:00:43]} d6 {[%emt 0:00:11]} 7. Bc4 {[%emt 0:02:42]} Bg7 {[%emt 0:17:36]} 8. dxc5 {[%emt 0:15:06]} e5 {[%emt 0:08:07]} 9. Bg5 {[%emt 0:05:58]} bxc5 {[%emt 0:00:18]} 10. Bxf6 {[%emt 0:14:17]} Qxf6 {[%emt 0:00:26]} 11. Bd5 {[%emt 0:00:45]} Nc6 {[%emt 0:02:20]} 12. O-O {[%emt 0:03:40]} O-O {[%emt 0:00:15]} 13. Na3 {[%emt 0:01:38]} Rfd8 {[%emt 0:07:37]} 14. e4 {[%emt 0:01:48]} Rac8 {[%emt 0:02:40]} 15. Re1 {[%emt 0:04:04]} Bh6 {[%emt 0:02:01]} 16. Nc2 {[%emt 0:02:51]} Qe7 {[%emt 0:05:53]} 17. Nh2 {[%emt 0:05:58]} a5 {[%emt 0:02:30]} 18. Ng4 {[%emt 0:01:44]} Bg7 {[%emt 0:00:04]} 19. Qd2 {[%emt 0:00:51]} Na7 {[%emt 0:02:29]} 20. Nge3 {[%emt 0:01:56]} Ba6 {[%emt 0:03:53]} 21. Rab1 {[%emt 0:04:42]} Bh6 {[%emt 0:05:55]} 22. Red1 {[%emt 0:04:58]} Qc7 {[%emt 0:06:22]} 23. Na3 {[%emt 0:05:44]} Rb8 {[%emt 0:01:18]} 24. Bc4 {[%emt 0:03:14]} Bb7 {[%emt 0:05:01]} 25. f3 {[%emt 0:03:30]} Qd7 {[%emt 0:09:56]} 26. Qe2 {[%emt 0:02:02]} Bxe3+ {[%emt 0:01:02]} 27. Qxe3 {[%emt 0:00:05]} Kg7 {[%emt 0:00:05]} 28. Rd2 {[%emt 0:03:02]} Bc6 {[%emt 0:03:47]} 29. Rbd1 {[%emt 0:01:55]} Qe7 {[%emt 0:00:58]} 30. Bd5 {[%emt 0:00:59]} Bb5 {[%emt 0:00:13]} 31. Nxb5 {[%emt 0:02:12]} Nxb5 {[%emt 0:00:07]} 32. Bc4 {[%emt 0:00:52]} Nc7 {[%emt 0:00:19]} 33. f4 {[%emt 0:01:57]} f6 {[%emt 0:00:18]} 34. fxe5 {[%emt 0:00:24]} fxe5 {[%emt 0:00:59]} 35. Rf1 {[%emt 0:00:18]} Rf8 {[%emt 0:00:11]} 36. Rdf2 {[%emt 0:00:26]} Rxf2 {[%emt 0:00:42]} 37. Rxf2 {[%emt 0:00:53]} Rf8 {[%emt 0:00:20]} 38. Rxf8 {[%emt 0:00:52]} Qxf8 {[%emt 0:00:20]} 39. a3 {[%emt 0:00:36]} Na8 {[%emt 0:05:15]} 40. b4 {[%emt 0:00:00]} axb4 {[%emt 0:00:00]} 41. axb4 {[%emt 0:03:57]} Nb6 {[%emt 0:01:35]} 42. Bd3 {[%emt 0:02:49]} Qf4 {[%emt 0:03:01]} 1/2-1/2

[Event "EYCC Girls U12 2018"]
[Site "Riga"]
[Date "2018.08.24"]
[Round "5"]
[White "Bashylina, Luisa"]
[Black "Blokhin, Sofia"]
[Result "1-0"]
[ECO "B43"]
[WhiteElo "1817"]
[BlackElo "1500"]
[Annotator "NA"]
[PlyCount "99"]
[EventDate "2018.08.20"]
[EventType "swiss"]
[EventCountry "LAT"]
[SourceTitle "playchess.com"]
[Source "ChessBase"]
[SourceQuality "1"]
[TimeControl "40/5400+30:1800+30"]

1. e4 {[%emt 0:00:00]} c5 {[%emt 0:00:00]} 2. Nf3 {[%emt 0:00:00]} e6 {[%emt 0:00:00]} 3. d4 {[%emt 0:00:00]} cxd4 {[%emt 0:00:00]} 4. Nxd4 {[%emt 0:00:00]} a6 {[%emt 0:00:00]} 5. Nc3 {[%emt 0:00:00]} d6 {[%emt 0:00:00]} 6. g3 {[%emt 0:00:22]} b5 {[%emt 0:01:10]} 7. Bg2 {[%emt 0:00:14]} Bb7 {[%emt 0:00:08]} 8. O-O {[%emt 0:00:13]} Qc7 {[%emt 0:01:31]} 9. Re1 {[%emt 0:01:55]} Nd7 {[%emt 0:02:14]} 10. Qf3 {[%emt 0:12:27]} Ngf6 {[%emt 0:01:45]} 11. a4 {[%emt 0:03:13]} b4 {[%emt 0:03:10]} 12. Nd5 {[%emt 0:01:06]} exd5 {[%emt 0:03:49]} 13. exd5+ {[%emt 0:00:04]} Be7 {[%emt 0:01:19]} 14. Nf5 {[%emt 0:01:20]} Ne5 {[%emt 0:01:01]} 15. Qe3 {[%emt 0:09:56]} Bc8 {[%emt 0:13:22]} 16. Nxe7 {[%emt 0:01:51]} Qxe7 {[%emt 0:00:17]} 17. f4 {[%emt 0:00:21]} Ng6 {[%emt 0:00:09]} 18. Qf2 {[%emt 0:00:16]} Ne5 {[%emt 0:09:09]} 19. fxe5 {[%emt 0:00:57]} dxe5 {[%emt 0:04:38]} 20. d6 {[%emt 0:01:22]} Qxd6 {[%emt 0:03:21]} 21. Bxa8 {[%emt 0:00:11]} Ng4 {[%emt 0:00:28]} 22. Qf3 {[%emt 0:03:25]} O-O {[%emt 0:01:31]} 23. Be3 {[%emt 0:02:03]} Bd7 {[%emt 0:04:11]} 24. Rad1 {[%emt 0:06:05]} Qc7 {[%emt 0:00:19]} 25. Be4 {[%emt 0:02:43]} f5 {[%emt 0:01:31]} 26. Bd5+ {[%emt 0:00:41]} Kh8 {[%emt 0:00:09]} 27. h3 {[%emt 0:06:50]} Nf6 {[%emt 0:01:04]} 28. Qg2 {[%emt 0:01:45]} Bxa4 {[%emt 0:01:46]} 29. b3 {[%emt 0:00:56]} Bd7 {[%emt 0:01:32]} 30. Qd2 {[%emt 0:01:43]} Nh5 {[%emt 0:03:20]} 31. Qxb4 {[%emt 0:03:00]} Rf6 {[%emt 0:03:11]} 32. Qc4 {[%emt 0:01:56]} Qb8 {[%emt 0:02:10]} 33. Bf7 {[%emt 0:01:51]} e4 {[%emt 0:03:55]} 34. Bf4 {[%emt 0:01:21]} Nxf4 {[%emt 0:00:39]} 35. gxf4 {[%emt 0:05:06]} Qb6+ {[%emt 0:00:57]} 36. Kh1 {[%emt 0:01:41]} Bc6 {[%emt 0:14:33]} 37. Bd5 {[%emt 0:00:57]} Qf2 {[%emt 0:01:55]} 38. Qf1 {[%emt 0:02:42]} Qxf1+ {[%emt 0:03:44]} 39. Rxf1 {[%emt 0:00:05]} Bxd5 {[%emt 0:01:08]} 40. Rxd5 {[%emt 0:00:00]} h6 {[%emt 0:00:00]} 41. c4 {[%emt 0:00:48]} Rb6 {[%emt 0:01:07]} 42. Rb1 {[%emt 0:01:14]} g6 {[%emt 0:00:12]} 43. c5 {[%emt 0:00:07]} Rb5 {[%emt 0:00:22]} 44. Rd8+ {[%emt 0:00:11]} Kg7 {[%emt 0:00:08]} 45. c6 {[%emt 0:00:51]} Rc5 {[%emt 0:00:11]} 46. Rd7+ {[%emt 0:00:05]} Kf6 {[%emt 0:00:13]} 47. c7 {[%emt 0:00:13]} Ke6 {[%emt 0:00:33]} 48. Rbd1 {[%emt 0:00:07]} Rc6 {[%emt 0:01:27]} 49. c8=Q {[%emt 0:00:16]} Rxc8 {[%emt 0:00:14]} 50. R1d6# {Ra8} 1-0